Cogmind - Beta 17 @@@ ROGUE MODE // 2026.07.12 @ 02:39:38 Player: Smol John Result: Destroyed by NE-IAO(R) with Subdweller Machine Gun Performance ------------- Evolutions (0) 0 Regions Visited (3) 600 Robots Destroyed (10) 50 Value Destroyed (251) 251 Prototype IDs (0) 0 Alien Tech Used (0) 0 Bonus (50) 50 TOTAL SCORE: 951 Bonus ------- Follower Combat Kills 50 Cogmind --------- Core Integrity 0/250 Matter 300/300 Energy 85/100 System Corruption 0% Temperature Cool (0) Movement Core (200) Ox3 Location -10/Subcaves Parts ------- > --- POWER (1) -------- (None) > --- PROPULSION (2) --- (None) > --- UTILITY (2) ------ Medium Storage Unit > --- WEAPON (2) ------- (None) > --- INVENTORY (10) --- Light Treads Light Treads Aluminum Leg Aluminum Leg Compact Wheel Large Storage Unit Light Assault Rifle Peak State ------------ > --- POWER ------------ Ion Engine > --- PROPULSION ------- Aluminum Leg Makeshift Leg > --- UTILITY ---------- Medium Storage Unit > --- WEAPON ----------- Beam Cannon Beam Cannon > --- INVENTORY -------- Light Treads Light Treads Aluminum Leg Aluminum Leg Compact Wheel Large Storage Unit Subdweller Laser Light Assault Rifle Light Assault Rifle [Rating: 10] Favorites ----------- Power Light Ion Engine Engine Light Ion Engine Propulsion Aluminum Leg Leg Aluminum Leg Utility Medium Storage Unit Storage Medium Storage Unit Weapon Beam Cannon Energy Gun Subdweller Laser Energy Cannon Beam Cannon Ballistic Gun Light Assault Rifle Build | -11 -10 -10 -10 ------- Run | Yrd Mat Min Sub Slots Evolved . | . . . . Power . | . . . . Propulsion . | . . . . Utility . | . . . . Weapon . | . . . . Parts Attached 12 | 6 4 . 2 Power 2 | 1 1 . . Engine 2 | 1 1 . . Core . | . . . . Reactor . | . . . . Propulsion 3 | 2 . . 1 Treads . | . . . . Leg 3 | 2 . . 1 Wheel . | . . . . Hover . | . . . . Flight . | . . . . Utility 2 | 1 1 . . Device . | . . . . Storage 2 | 1 1 . . Processor . | . . . . Hackware . | . . . . Protection . | . . . . Artifact . | . . . . Weapon 5 | 2 2 . 1 Energy Gun 1 | . . . 1 Energy Cannon 2 | . 2 . . Ballistic Gun 2 | 2 . . . Ballistic Cannon . | . . . . Launcher . | . . . . Special Weapon . | . . . . Impact Weapon . | . . . . Slashing Weapon . | . . . . Piercing Weapon . | . . . . Special Melee Weapon . | . . . . Unidentified Prototypes . | . . . . Parts Lost 8 | . . . 8 Power 2 | . . . 2 Propulsion 2 | . . . 2 Utility . | . . . . Weapon 4 | . . . 4 Highest Loss Streak 7 | . . . 7 To Critical Strikes . | . . . . Average Backups 8 | 4 8 10 8 Power . | . 1 1 . Propulsion 4 | 3 4 4 4 Utility 1 | . 1 3 1 Weapon 2 | . 1 2 2 Tool/Special . | . . . . Unused Backups 8 | . 1 1 6 Power . | . . . . Propulsion 5 | . . 1 4 Utility 2 | . . . 2 Weapon 1 | . 1 . . Tool/Special . | . . . . Average Slot Usage (%) 84 | . 85 85 83 Engine 13 | . 14 14 13 Leg 27 | . 28 28 27 Storage 14 | . 14 14 14 Energy Cannon 26 | . 21 28 26 Peak Build Rating 10 | 6 7 7 10 Average Rating 7 | 4 6 6 8 On Entrance 5 | . 6 7 7 Avg Prop Armor Cover (%) . | . . . . Naked Turns . | . . . . Heaviest Build 22 | 12 21 19 22 Greatest Support 30 | 20 20 20 30 Greatest Overweight (x) 3 | 1 1 . 3 Average Overweight (x) . | . . . . Largest Inventory Capacity 10 | 8 10 10 10 Average Capacity 9 | 6 9 10 10 Most Carried 10 | 7 10 10 10 Average Carried 8 | 4 8 9 8 Final Capacity 10 | 8 10 10 10 Final Carried 10 | 6 10 10 7 Class Distribution -------------------- 100% | Mutant Dominant Class ---------------- Mutant | -10/Materials Mutant | -10/Mines Mutant | -10/Subcaves Resources | -11 -10 -10 -10 ----------- Run | Yrd Mat Min Sub Matter Collected 340 | 202 . 118 20 Remotely . | . . . . Salvage Created 292 | . . 149 143 Parts 25 | . . 12 13 Haulers Intercepted . | . . . . Recyclers Shooed . | . . . . Parts Field Recycled . | . . . . Retrieved Matter . | . . . . Parts Self-Destructed 9 | . . . 9 Prevented . | . . . . Parts Restored . | . . . . Kills | -11 -10 -10 -10 ------- Run | Yrd Mat Min Sub Combat Hostiles Destroyed 10 | . . 7 3 Guns 1 | . . . 1 Cannons 9 | . . 7 2 Classes Destroyed 3 | . . 2 1 Swarmer 5 | . . 5 . Grunt 2 | . . 2 . Subdweller 3 | . . . 3 Best Kill Streak 3 | . . 3 1 Combat Bots Only 3 | . . 3 1 Max Kills in Single Turn 1 | . . 1 1 Gunslinging . | . . . . Exploded . | . . . . Melee . | . . . . Uniques/NPCs Destroyed . | . . . . Combat | -11 -10 -10 -10 -------- Run | Yrd Mat Min Sub Hostile Shots Fired 88 | . . 37 51 Missed 25 | . . 12 13 Hits 63 | . . 25 38 Projectile 63 | . . 25 38 Critical Strikes 3 | . . 1 2 Damage Taken 1020 | . . 231 789 Core 262 | . . 38 224 Absorbed by Shields . | . . . . Core Remaining (%) 100 | 100 . . . Volleys Fired 39 | . . 17 22 Largest 2 | . . 2 2 Hottest 120 | . . 120 120 Shots Fired 70 | . . 34 36 Gun 17 | . . . 17 Cannon 53 | . . 34 19 Launcher . | . . . . Special . | . . . . Kinetic 8 | . . . 8 Thermal 62 | . . 34 28 Explosive . | . . . . Electromagnetic . | . . . . Robot Hit Streak 9 | . . 5 9 Robot Miss Streak 4 | . . 4 3 Penetration Max . | . . . . Secondary Targets . | . . . . Shots Hit Robots 37 | . . 13 24 Core Hits 14 | . . 8 6 Critical Kills . | . . . . Critical Parts Destroyed . | . . . . Critical Strikes . | . . . . Melee Attacks . | . . . . Impact . | . . . . Slashing . | . . . . Piercing . | . . . . Sneak Attacks . | . . . . Combat Hostiles . | . . . . Follow-up Attacks . | . . . . Damage Inflicted 525 | . . 225 300 Guns 159 | . . . 159 Cannons 366 | . . 225 141 Explosions . | . . . . Melee . | . . . . Ramming . | . . . . Kinetic 44 | . . . 44 Thermal 481 | . . 225 256 Explosive . | . . . . Electromagnetic . | . . . . Impact . | . . . . Slashing . | . . . . Piercing . | . . . . Highest Corruption . | . . . . Average Corruption . | . . . . Corruption Purged . | . . . . Corruption Blocked . | . . . . Overload Shots . | . . . . Overflow Damage . | . . . . Projectiles . | . . . . Explosions . | . . . . Melee . | . . . . Knockbacks . | . . . . Impact . | . . . . Kinetic . | . . . . Secondary . | . . . . Self-Inflicted Damage . | . . . . Shots . | . . . . Rammed . | . . . . Targets Rammed . | . . . . Kicked . | . . . . Crushed . | . . . . Highest Temperature 475 | . . 475 18 Average Temperature 157 | . . 169 13 Received Heat Transfer 63 | . . 39 24 Effects 1 | . . 1 . Shutdowns 1 | . . 1 . Siege Activations . | . . . . Martial Activations . | . . . . Shielding Activations . | . . . . Robots Disrupted . | . . . . Combat Hostiles . | . . . . Robots Corrupted . | . . . . Combat Hostiles . | . . . . Parts Fried . | . . . . Impact Corruptions . | . . . . Robots Melted . | . . . . Combat Hostiles . | . . . . Parts Melted 2 | . . 2 . Heat Transferred 927 | . . 481 446 Parts Sabotaged . | . . . . Parts Stolen . | . . . . Parts Stripped . | . . . . Power Chain Reactions . | . . . . Alert | -11 -10 -10 -10 ------- Run | Yrd Mat Min Sub Maximum Alert Level . | . . . . Low Security (%) 100 | 100 100 100 . Level 1 . | . . . . Level 2 . | . . . . Level 3 . | . . . . Level 4 . | . . . . Level 5 . | . . . . High Security . | . . . . Max Security . | . . . . Peak Influence 167 | . . 167 . Initial . | . . . . Average 53 | . . 88 . Influence Increases 277 | . . 277 . Destroy 0b10 Robot/C 180 | . . 180 . Destroy Leader 20 | . . 20 . Allied During Kill 2 | . . 2 . Lose Combat Pursuer 75 | . . 75 . Influence Decreases 277 | . . 180 97 Entered New Map 51 | . . . 51 Time Decay 206 | . . 160 46 Lost Ally 20 | . . 20 . Squads Dispatched 1 | . . 1 . Investigation . | . . . . Extermination . | . . . . Reinforcement . | . . . . Assault 1 | . . 1 . Garrison . | . . . . Intercept . | . . . . Searches Triggered . | . . . . Construction Impeded . | . . . . Haulers Reinforced . | . . . . Active Scanning Responses . | . . . . Cargo Convoy Interrupts . | . . . . Stealth | -11 -10 -10 -10 --------- Run | Yrd Mat Min Sub Distress Signals . | . . . . Communications Jammed . | . . . . Distress Signals . | . . . . Times Spotted 21 | . 1 15 5 Peak Tracking Total 4 | . 1 4 3 Tactical Retreats 3 | . . 3 . Traps | -11 -10 -10 -10 ------- Run | Yrd Mat Min Sub Traps Triggered . | . . . . Indirectly . | . . . . Trap Hack Attempts . | . . . . Triggered . | . . . . Disarmed . | . . . . Reprogrammed . | . . . . Reused . | . . . . Traps Extracted . | . . . . Installed . | . . . . Triggered . | . . . . Machines | -11 -10 -10 -10 ---------- Run | Yrd Mat Min Sub Machines Disabled . | . . . . Max in Single Turn . | . . . . Machines Repaired . | . . . . Machines Dismantled . | . . . . Machines Sabotaged . | . . . . Overloaded Fab Kills . | . . . . Hacking | -11 -10 -10 -10 --------- Run | Yrd Mat Min Sub Machines Accessed 2 | . 2 . . Terminals 2 | . 2 . . Fabricators . | . . . . Repair Stations . | . . . . Recycling Units . | . . . . Scanalyzers . | . . . . Garrison Access . | . . . . Total Hacks 2 | . 2 . . Successful . | . . . . Failed 2 | . 2 . . Catastrophic 2 | . 2 . . Database Lockouts . | . . . . Manual 2 | . 2 . . Terminals 2 | . 2 . . Fabricators . | . . . . Repair Stations . | . . . . Recycling Units . | . . . . Scanalyzers . | . . . . Garrison Access . | . . . . Terminal Hacks . | . . . . Fabricator Hacks . | . . . . Repair Station Hacks . | . . . . Recycling Unit Hacks . | . . . . Scanalyzer . | . . . . Garrison Access Hacks . | . . . . Unauthorized Hacks . | . . . . Terminals . | . . . . Fabricators . | . . . . Repair Stations . | . . . . Recycling Units . | . . . . Scanalyzers . | . . . . Garrison Access . | . . . . Data Cores Recovered . | . . . . Used . | . . . . Hacking Detections 2 | . 2 . . Full Trace Events . | . . . . Feedback Events . | . . . . Feedback Blocked . | . . . . Robot Schematics Acquired . | . . . . Robots Built . | . . . . Authchips . | . . . . Time . | . . . . Total Robot Build Rating . | . . . . Part Schematics Acquired . | . . . . Parts Built . | . . . . Authchips . | . . . . Time . | . . . . Total Part Build Rating . | . . . . Part Studies Acquired . | . . . . Parts Repaired . | . . . . Time . | . . . . Parts Recycled . | . . . . Recycled Matter . | . . . . Retrieved Matter . | . . . . Retrieved Components . | . . . . Parts Scanalyzed . | . . . . Part Schematics Acquired . | . . . . Parts Damaged . | . . . . Bothacking | -11 -10 -10 -10 ------------ Run | Yrd Mat Min Sub Used RIF Installer . | . . . . Robots Hacked . | . . . . Non-combat . | . . . . Combat . | . . . . Robot Hacks Applied . | . . . . Relay Couplers Released . | . . . . Fabnet Peak Effective % . | . . . . Robots Rewired . | . . . . Allies Hacked . | . . . . Hacks Repelled . | . . . . Allies | -11 -10 -10 -10 -------- Run | Yrd Mat Min Sub Total Allies 1 | . . 1 . Largest Group 1 | . . 1 . Highest-Rated Group 31 | . . 31 . Highest-Rated Ally 31 | . . 31 . Total Orders . | . . . . Ally Attacks 5 | . . 5 . Total Damage 82 | . . 82 . Kills 2 | . . 2 . Allies Corrupted . | . . . . Allies Melted . | . . . . Intel | -11 -10 -10 -10 ------- Run | Yrd Mat Min Sub Active Infowar (turns) . | . . . . Robot Analysis Total . | . . . . Derelict Logs Recovered . | . . . . Drone Launches . | . . . . Drone Recoveries . | . . . . Exploration | -11 -10 -10 -10 ------------- Run | Yrd Mat Min Sub Turns Passed 1290 | 116 105 341 728 Spaces Moved 899 | 78 72 224 525 Core 12 | 11 . . 1 Treads . | . . . . Legs 887 | 67 72 224 524 Wheels . | . . . . Hover . | . . . . Flight . | . . . . Fastest Speed 50 | 50 120 120 120 Average Speed 124 | 129 126 120 124 Slowest Speed 200 | 190 190 120 200 Overloaded Moves . | . . . . Propulsion Burnouts . | . . . . Robots Hopped . | . . . . Potential Cave-ins . | . . . . Cave-ins Triggered . | . . . . Exploration Rate (%) 25 | 5 18 46 34 Regions Visited 3 Branch Regions 2 Pre-discovered Areas . | . . . . Known Exits Taken . | . . . . Unknown Exits Taken 3 | 1 1 1 . Scrap Searched 1 | . . 1 . Spaces Dug . | . . . . Terrain Destroyed . | . . . . Melee . | . . . . Projectile . | . . . . AOE . | . . . . Terrain Rammed . | . . . . Walls Destroyed . | . . . . Machines Disabled . | . . . . Actions | -11 -10 -10 -10 --------- Run | Yrd Mat Min Sub Total 1001 | 90 83 262 566 Wait 30 | . . 20 10 Move 896 | 77 71 223 525 Hop . | . . . . Pick Up 13 | 7 4 1 1 Fast Attach 6 | 5 1 . . Attach 4 | 1 . . 3 Detach 1 | . 1 . . Swap 6 | . 5 . 1 Drop 4 | . 1 1 2 Fire 39 | . . 17 22 Melee . | . . . . Ram . | . . . . Kick . | . . . . Crush . | . . . . Escape Stasis . | . . . . Rewire 2 | . . . 2 Trap . | . . . . Miscellaneous . | . . . . Route ------- -11/Scrapyard -10/Materials -10/Mines -10/Subcaves (discovered 1 exit: [*Mat]) History --------- Turn | Location | Event 12 | -11/Scrapyard | Discovered new exit (range 16) 117 | -11/Scrapyard | Entered Materials 186 | -10/Materials | Discovered new exit (range 14) 222 | -10/Materials | Entered Mines 223 | -10/Mines | Met a Derelict testing a Signal Generator 300 | -10/Mines | Build established: Mutant 551 | -10/Mines | Discovered new exit (range 6) 563 | -10/Mines | Entered Subcaves 564 | -10/Subcaves | Approached by a straggling Scientist 873 | -10/Subcaves | Shifting Twisted Machinery released Battle Rifle 1205 | -10/Subcaves | Shifting Twisted Machinery released Sub. Monowheel 1220 | -10/Subcaves | Discovered new exit (range 12) 1269 | -10/Subcaves | Core integrity fell below 50% 1281 | -10/Subcaves | Core integrity fell below 20% 1291 | -10/Subcaves | Destroyed by NE-IAO(R) with Subdweller Machine Gun Last Messages --------------- W2-314(c): "I think it's somewhere west of here" W2-314(c): "I think it's somewhere northwest of here" W2-314(c): "I think it's somewhere west of here" 01124_ Subatomizers dissect the Lgt. Ion Engine. W2-314(c): "I think it's somewhere west of here" Sub. Monowheel falls loose from the Twisted Machinery. 01220_ EXIT=FOUND W2-314(c): "I think it's somewhere west of here" 01246_ Beam Cannon destroyed. 01265_ Ion Engine destroyed. 01266_ Beam Cannon destroyed. W2-314(c): "I think it's somewhere southwest of here" 01280_ Mak. Leg destroyed. 01281_ Sub. Laser destroyed. 01283_ KB-9G5(R) destroyed. 01288_ Aluminum Leg destroyed. 01290_ Lgt. Assault Rifle destroyed. Map ----- +----------------------------------------------------+ | ??????????????????????# #?????????????????????? | | ??????????????????????# ##?????????????????????? | | ??????????????????????# ##??????????????????????? | | ??????????????????????## #???????????????????????? | | ???????????????????????###???????????????????????? | | ?????????????????????????????????????????????????? | | ?????????????????????????????????????????????????? | | ?????????????????????????????????????????????????? | | ?????????????????????????????????????????????????? | | ?????????????????????????????????????????????????? | | ?????????????????????????????????????????????????? | | ?????????????????????????????????????????????????? | | ?????????????????????????????????????????????????? | | ??????????????? #????????????????????????????????? | | ?????????????? ????????##?????###?????????????? | | ????????????? ???##### ????? #?????????????? | | ????????????? #??# # ????? ###???????????? | | ??????????????# ### ????## # #???????????? | | ???????????????# ???$<# ????????####? | | ????????????????# ## ##$&$# ##?####??#" ## | | ?????????????????# ## #R